lending/lending_fUSD_20240507
["ID","MTS","AMOUNT","RATE_DAILY","PERIOD"]
[326534305,1715083850418,-3077.0200038,0.00022999,7]
[326534307,1715083850457,-3284.0799962,0.00023,2]
[326534310,1715083851921,-454.68489641,0.00023,2]
[326534311,1715083851933,-373.60200006,0.00023,2]
[326534312,1715083851947,-516.2379924,0.00023,2]
[326534313,1715083851961,-636.4,0.00023,2]
[326534314,1715083855070,-605.23885963,0.00022998,2]
[326534315,1715083855083,-79.24747336,0.00022998,2]
[326534316,1715083855094,-12644.35252664,0.00023,2]
[326534317,1715083855107,-466.98336431,0.00023,2]
[326534322,1715084054193,10000.0,0.00025,120]
[326534348,1715085036683,-803.60000004,9.608e-05,2]
[326534351,1715085036725,-6226.92924577,9.608e-05,2]
[326534354,1715085036737,-175.78,9.609e-05,2]
[326534355,1715085036755,-88.11865423,0.00012011,2]
[326534356,1715085036768,-61.88134577,0.00012011,2]
[326534357,1715085036778,-163.0246,0.000127,2]
[326534358,1715085036788,-179.67796345,0.000127,2]
[326534359,1715085036800,-915.83,0.00013425,2]
[326534361,1715085036818,-150.0,0.00014289,2]
[326534362,1715085036829,-10000.0,0.0001429,2]
[326534364,1715085036839,-618.22068598,0.00015099,2]
[326534365,1715085036850,-200.0,0.000151,2]
[326534366,1715085036860,-499.99,0.00015717,2]
[326534367,1715085036870,-403.04,0.00015717,2]
[326534368,1715085036880,-999.99,0.00015717,2]
[326534369,1715085036891,-1946.86,0.00015717,2]
[326534370,1715085036902,-464.39,0.00015717,2]
[326534371,1715085036912,-210.0,0.00015717,2]
[326534372,1715085036923,-312.6,0.00016,2]
[326534373,1715085036934,-2778.74,0.00016,2]
[326534374,1715085036945,-155.51786829,0.00016117,2]
[326534375,1715085036955,-3077.0200038,0.00016164,2]
[326534376,1715085036965,-156.79615681,0.00016165,2]
[326534377,1715085036976,-1082.79,0.00016165,2]
[326534378,1715085036987,-4661.46,0.000162,2]
[326534379,1715085036996,-150.99,0.000162,2]
[326534380,1715085037007,-4557.0,0.000162,2]
[326534381,1715085037017,-155.93507303,0.0001647,2]
[326534382,1715085037027,-1707.53,0.00016474,6]
[326534383,1715085037036,-152.26191985,0.00016618,2]
[326534384,1715085037046,-300.0,0.00017108,2]
[326534385,1715085037057,-152.26191985,0.00017251,2]
[326534386,1715085037069,-2561.89837702,0.00017259,2]
[326534387,1715085037080,-293.0,0.00017289,2]
[326534388,1715085037092,-17781.9431,0.00017391,2]
[326534389,1715085037101,-5850.1594,0.00017391,2]
[326534390,1715085037112,-152.26191985,0.00017554,2]
[326534391,1715085037122,-156.79615681,0.00017864,2]
[326534392,1715085037132,-152.26191985,0.0001787,2]
[326534393,1715085037143,-152.26191985,0.00017932,2]
[326534394,1715085037153,-1250.0,0.00018,3]
[326534395,1715085037162,-155.51786829,0.0001802,2]
[326534396,1715085037173,-156.79615681,0.00018164,2]
[326534397,1715085037183,-153.67712301,0.00018212,2]
[326534398,1715085037192,-155.51786829,0.00018302,2]
[326534399,1715085037204,-500.0,0.00018355,2]
[326534400,1715085037216,-500.0,0.00018355,2]
[326534401,1715085037227,-155.51786829,0.00018376,2]
[326534402,1715085037238,-188.96,0.0001843,2]
[326534403,1715085037250,-166.63741743,0.0001843,2]
[326534404,1715085037260,-500.0,0.00018432,2]
[326534405,1715085037270,-152.26191985,0.00018456,2]
[326534406,1715085037280,-407.9,0.00018554,2]
[326534407,1715085037291,-152.26191985,0.00018555,2]
[326534408,1715085037300,-175.4,0.0001862,2]
[326534409,1715085037312,-153.67712301,0.0001868,2]
[326534410,1715085037322,-155.03919101,0.00018862,2]
[326534411,1715085037332,-156.79601724,0.00018867,2]
[326534412,1715085037342,-208.883423,0.00018947,2]
[326534414,1715085037351,-201.221654,0.00018947,2]
[326534416,1715085037361,-5595.815127,0.00018947,2]
[326534418,1715085037371,-155.0,0.00019,2]
[326534420,1715085037380,-156.79615681,0.00019104,2]
[326534422,1715085037390,-155.93507303,0.00019118,2]
[326534424,1715085037399,-432.24,0.00019178,2]
[326534426,1715085037409,-462.11,0.00019178,2]
[326534427,1715085037419,-5595.815127,0.00019183,2]
[326534428,1715085037429,-300.0,0.000192,2]
[326534429,1715085037439,-152.26191985,0.00019284,2]
[326534430,1715085037449,-154.38327233,0.00019307,2]
[326534431,1715085037459,-152.26191985,0.00019392,2]
[326534432,1715085037468,-5595.815127,0.0001942,2]
[326534433,1715085037478,-500.0,0.00019451,2]
[326534434,1715085037488,-500.0,0.00019451,2]
[326534435,1715085037497,-152.26191985,0.00019577,2]
[326534436,1715085037507,-155.51786829,0.000196,2]
[326534437,1715085037518,-152.26191985,0.00019604,2]
[326534438,1715085037528,-5595.815127,0.00019657,2]
[326534439,1715085037538,-5595.815127,0.00019894,2]
[326534440,1715085037548,-158.74446192,0.00019916,2]
[326534441,1715085037558,-167.96542799,0.00019946,2]
[326534442,1715085037572,-5178.4506846,0.0002,2]
[326534443,1715085037581,-1300.0,0.0002,3]
[326534444,1715085037592,-18021.59011206,0.0002,2]
[326534445,1715085037601,-152.26191985,0.00020144,2]
[326534446,1715085037610,-170.23,0.00020452,2]
[326534447,1715085037620,-156.79615681,0.00020543,2]
[326534448,1715085037630,-255.71389088,0.00020547,2]
[326534449,1715085037641,-500.0,0.00020547,2]
[326534450,1715085037650,-166.63741745,0.00020677,2]
[326534451,1715085037660,-188.96,0.00020733,2]
[326534452,1715085037670,-153.67712303,0.00020749,2]
[326534453,1715085037679,-155.03919102,0.00020936,2]
[326534454,1715085037689,-158.32485787,0.00020986,2]
[326534455,1715085037698,-152.26191985,0.00021021,2]
[326534456,1715085037708,-152.26191985,0.00021523,2]
[326534457,1715085037718,-2254.72,0.00021589,15]
[326534458,1715085037727,-409.52358685,0.00021643,2]
[326534459,1715085037738,-1250.0,0.000219,2]
[326534460,1715085037747,-500.0,0.000219,2]
[326534461,1715085037757,-250.0,0.00021918,2]
[326534462,1715085037767,-250.0,0.00021918,2]
[326534463,1715085037777,-2000.0,0.00021918,2]
[326534464,1715085037786,-168.86,0.00021918,2]
[326534465,1715085037796,-183.36,0.00021918,2]
[326534466,1715085037806,-155.93507303,0.00021984,2]
[326534467,1715085037819,-1350.0,0.00022,3]
[326534468,1715085037829,-152.26191985,0.00022239,2]
[326534469,1715085037838,-155.93507303,0.00022365,2]
[326534470,1715085037848,-155.51786829,0.00022415,2]
[326534471,1715085037857,-152.0,0.00022418,3]
[326534472,1715085037867,-155.51786829,0.00022485,2]
[326534473,1715085037876,-151.0,0.00022508,2]
[326534474,1715085037886,-168.22068823,0.00022606,2]
[326534475,1715085037895,-153.89614997,0.00022613,2]
[326534476,1715085037906,-153.89614998,0.0002263,2]
[326534477,1715085037916,-155.34841615,0.0002263,2]
[326534478,1715085037925,-1000.0,0.0002265,2]
[326534479,1715085037935,-12555.7954,0.0002265,2]
[326534480,1715085037945,-152.26191985,0.00022656,2]
[326534481,1715085037955,-2049.79838026,0.00022694,2]
[326534482,1715085037966,-1315.6969225,0.00022694,2]
[326534483,1715085037976,-616.92825219,0.00022694,2]
[326534484,1715085037985,-3214.67766691,0.00022697,2]
[326534485,1715085037995,-244.21188208,0.000227,2]
[326534486,1715085038004,-150.23,0.0002274,2]
[326534487,1715085038013,-616.92825218,0.00022746,2]
[326534488,1715085038023,-3214.6776669,0.00022747,2]
[326534489,1715085038033,-165169.3774,0.0002275,2]
[326534490,1715085038043,-616.92825218,0.00022797,2]
[326534491,1715085038052,-3214.6776669,0.00022798,2]
[326534492,1715085038063,-155.51786829,0.00022798,2]
[326534493,1715085038072,-1219.461,0.000228,2]
[326534494,1715085038082,-320.66419456,0.000228,2]
[326534495,1715085038091,-200.0,0.00022816,2]
[326534496,1715085038101,-1000.0,0.00022816,2]
[326534497,1715085038110,-200.0,0.00022816,2]
[326534498,1715085038119,-3214.6776669,0.00022848,2]
[326534499,1715085038128,-616.92825218,0.00022849,2]
[326534500,1715085038138,-158.74446192,0.00022878,2]
[326534501,1715085038148,-500.0,0.00022889,2]
[326534502,1715085038157,-210.03112033,0.00022889,2]
[326534503,1715085038167,-354.96000144,0.00022889,2]
[326534504,1715085038176,-20000.0,0.0002289,2]
[326534505,1715085038185,-3214.6776669,0.00022898,2]
[326534506,1715085038195,-30100.7625,0.000229,2]
[326534507,1715085038208,-100000.0,0.000229,2]
[326534508,1715085038219,-16236.5783,0.000229,2]
[326534509,1715085038229,-500.0,0.000229,2]
[326534510,1715085038239,-179.02628781,0.000229,2]
[326534511,1715085038250,-152.87680522,0.000229,2]
[326534512,1715085038260,-172.4746835,0.000229,2]
[326534514,1715085038269,-616.92825218,0.000229,2]
[326534515,1715085038280,-741.57435956,0.000229,2]
[326534517,1715085038289,-415.72406228,0.000229,2]
[326534519,1715085038299,-3220.85545111,0.000229,2]
[326534521,1715085038309,-200.97588817,0.000229,2]
[326534523,1715085038321,-1958.51553774,0.000229,2]
[326534525,1715085038330,-164.74761096,0.000229,2]
[326534527,1715085038340,-155.51786834,0.00022908,2]
[326534528,1715085038350,-1286.0,0.0002297,15]
[326534529,1715085038360,-1286.0,0.0002298,15]
[326534531,1715085038370,-150.23,0.0002299,2]
[326534533,1715085038379,-638.87360298,0.0002299,2]
[326534535,1715085038390,-1286.0,0.0002299,15]
[326534537,1715085038399,-150.23,0.0002299,2]
[326534539,1715085038408,-150.23,0.0002299,2]
[326534541,1715085038418,-150.23,0.0002299,2]
[326534543,1715085038427,-150.23,0.0002299,2]
[326534545,1715085038437,-150.23,0.0002299,2]
[326534547,1715085038446,-638.87360298,0.0002299,2]
[326534548,1715085038456,-790.910014,0.00022998,2]
[326534549,1715085038466,-855.26382365,0.00022998,2]
[326534550,1715085038476,-355.5316748,0.00022998,2]
[326534551,1715085038487,-6228.36696325,0.00022998,2]
[326534552,1715085038496,-719.3944,0.00022998,2]
[326534553,1715085038505,-177.54622384,0.00022998,2]
[326534554,1715085038515,-7505.26883546,0.00022999,2]
[326534555,1715085038524,-196.95822042,0.00022999,2]
[326534556,1715085038534,-29848.69894986,0.00023,2]
[326534557,1715085038584,-13276.88186098,0.00023,2]
[326534558,1715085038596,-756.03810701,0.00023,2]
[326534559,1715085038608,-415.09721781,0.00023,2]
[326534560,1715085038619,-359.16532702,0.00023,2]
[326534561,1715085038630,-126640.37112341,0.00023,2]
[326534562,1715085038641,-1457.69298297,0.00023,2]
[326534563,1715085038652,-295.44814184,0.00023,2]
[326534564,1715085038663,-47457.95046536,0.00023,2]
[326534565,1715085038674,-5950.0,0.00023,2]
[326534566,1715085041713,-317.69432334,0.0001429,2]
[326534572,1715085047132,-188.4240812,0.0001429,2]
[326534573,1715085047142,-6177.2641161,0.000229,2]
[326534574,1715085047151,-10381.92422561,0.00023,2]
[326534575,1715085047164,-4247.25,0.00023,2]
[326534577,1715085047176,-417.92107087,0.00023,2]
[326534578,1715085047192,-440.74979347,0.00023,2]
[326534579,1715085047709,-776.62754675,0.00023,2]
[326534581,1715085047720,-585.79333653,0.00023,2]
[326534583,1715085047731,-466.70474391,0.00023,2]
[326534586,1715085047742,-1471.2205633,0.00023,2]
[326534587,1715085047755,-2017.62724224,0.00023,2]
[326534588,1715085047765,-2303.75270085,0.00023,2]
[326534589,1715085047781,-622.58686057,0.00023,2]
[326534590,1715085047792,-573.43013765,0.00023,2]
[326534591,1715085047807,-3269.17502,0.00023,2]
[326534623,1715086137111,1000.0,0.00025,120]
[326534636,1715086233422,-1655.49343482,0.000118,2]
[326534639,1715086233433,-317.625,0.000118,2]
[326534641,1715086233445,-935.11650011,0.000118,2]
[326534663,1715086239154,-1246.92992481,0.000118,2]
[326534665,1715086239167,-3246.29557073,0.000118,2]
[326534667,1715086239177,-300.0,0.00011999,2]
[326534669,1715086239187,-90.90960609,0.00012,2]
[326534671,1715086239201,-1092.08755053,0.00012,2]
[326534673,1715086239215,-9797.85808281,0.00012,2]
[326534674,1715086239229,-3566.74019642,0.00012,2]
[326534675,1715086239242,-455.97638798,0.00012011,2]
[326534676,1715086239254,-2201.8600732,0.00012011,2]
[326534677,1715086239266,-544.49802541,0.00012011,2]
[326534678,1715086239278,-511.89551341,0.00012011,2]
[326534679,1715086239288,-66.99996659,0.00012011,2]
[326534680,1715086239299,-83.00003341,0.00012011,2]
[326534681,1715086239311,-188.96,0.00012011,2]
[326534682,1715086239321,-2198.47887226,0.00012011,2]
[326534683,1715086239335,-56.58112774,0.00012011,2]
[326534684,1715086239345,-658.96841436,0.000129,2]
[326534685,1715086239356,-383.65,0.000129,2]
[326534686,1715086239367,-261.9,0.000129,2]
[326534687,1715086239378,-1.1586108,0.000129,2]
[326534688,1715086239388,-307.8376268,0.000129,2]
[326534689,1715086239397,-540.3337624,0.000129,2]
[326534690,1715086239409,-325.82,0.000129,2]
[326534691,1715086241240,-658.89701571,0.000129,2]
[326534692,1715086241252,-2593.12529929,0.000129,2]
[326534693,1715086241262,-1269.9693,0.000129,2]
[326534694,1715086241272,-150.0,0.00012959,2]
[326534695,1715086241282,-212.95786766,0.0001299,2]
[326534696,1715086241293,-212.95786766,0.0001299,2]
[326534697,1715086241303,-212.95786766,0.0001299,2]
[326534698,1715086241313,-4676.16532223,0.00012998,2]
[326534699,1715086241323,-1021.6383433,0.00012999,3]
[326534700,1715086241332,-1021.6383433,0.00012999,3]
[326534701,1715086241342,-2748.73784033,0.00012999,2]
[326534702,1715086241351,-70793.6230596,0.00013,2]
[326534703,1715086241432,-4238.90677272,0.00013,2]
[326534704,1715086241444,-30542.97167873,0.00013,2]
[326534705,1715086241455,-313.56710377,0.00013,2]
[326534752,1715086309451,373.5873741,0.00025,120]
[326534774,1715087177145,-170.96,0.00012011,2]
[326534775,1715087177584,-150.0,0.00012011,2]
[326534776,1715087177964,-1560.96410363,0.0001268,2]
[326534777,1715087178376,-545.2041,0.000127,2]
[326534778,1715087178413,-159.71369038,0.000128,2]
[326534779,1715087178439,-2475.15810599,0.00012829,2]
[326534796,1715087433479,-200.0,0.00012011,2]
[326534799,1715087433509,-740.18,0.00012011,2]
[326534801,1715087433519,-623.12822,0.0001287,2]
[326534803,1715087433530,-3111.8079913,0.000129,2]
[326534805,1715087433543,-159.71369038,0.000129,2]
[326534807,1715087433554,-160.4039,0.000129,2]
[326534809,1715087433570,-307.83762676,0.000129,2]
[326534811,1715087433582,-870.45135012,0.000129,2]
[326534814,1715087433601,-494.38290638,0.000129,2]
[326534816,1715087433619,-1030.38846551,0.0001299,2]
[326534818,1715087433634,-2358.78776413,0.00012998,2]
[326534821,1715087433658,-165.33169135,0.00012998,2]
[326534823,1715087433683,-371.18543333,0.00012999,2]
[326534825,1715087433697,-628.81456667,0.00012999,2]
[326534827,1715087433708,-188594.82030266,0.00013,2]
[326534841,1715087441586,-1934.30499678,0.00013,2]
[326534842,1715087441603,-7282.66282219,0.00013,2]
[326534843,1715087441624,-72959.14744626,0.00013,2]
[326534844,1715087441639,-34611.13974414,0.00013,2]
[326534845,1715087441655,-1948.49834025,0.00013,2]
[326534846,1715087441673,-4077.14185465,0.00013,2]
[326534847,1715087441786,-0.65499565,0.00013,2]
[326534848,1715087441803,-3742.25394438,0.00013,2]
[326534849,1715087441822,-638.77820498,0.00013,2]
[326534850,1715087441835,-500.6643648,0.00013,2]
[326534853,1715087444636,-12379.01662813,0.00013,2]
[326534856,1715087444664,-3191.5174042,0.00013,2]
[326534860,1715087444698,-3397.76989014,0.00013,2]
[326534863,1715087444710,-1117.63928077,0.00013,2]
[326534866,1715087444727,-46115.38469206,0.00013,2]
[326534868,1715087444740,-39912.25572739,0.00013,2]
[326534870,1715087444755,-2595.58041615,0.00013,2]
[326534871,1715087444770,-8900.33356974,0.00013,2]
[326534873,1715087444786,-358.04855996,0.00013,2]
[326534875,1715087444798,-3507.23,0.00013,2]
[326534878,1715087444818,-319.06,0.00013,2]
[326534886,1715087449208,-3024.13162565,0.00013,2]
[326534887,1715087449236,-150782.5150846,0.00013,2]
[326534889,1715087449248,-5456.68684212,0.00013,2]
[326534892,1715087449271,-649.3866149,0.00013,2]
[326534894,1715087449286,-4030.75897368,0.00013,2]
[326534895,1715087449300,-34500.35503544,0.00013,2]
[326534897,1715087449312,-1647.09143245,0.00013,2]
[326534898,1715087449330,-1529.48,0.00013,2]
[326534899,1715087449349,-1341.5767875,0.00013,2]
[326534900,1715087449361,-1207.10104508,0.00013,2]
[326534901,1715087449373,-1123.52599367,0.00013,2]
[326534908,1715087658700,150.0,8e-05,2]
[326534916,1715087882911,-325.5,0.00012008,2]
[326534918,1715087990845,-536.79102365,0.00012009,2]
[326534920,1715087993913,-150.0,0.0001201,2]
[326534921,1715087994774,-4313.20897635,0.0001201,2]
[326534933,1715088636055,-1144.03613857,0.00011078,2]
[326534936,1715088636065,-3958.51833394,0.00011079,2]
[326534940,1715088636077,-333.00794755,0.00011079,2]
[326534943,1715088636091,-279.69657276,0.00011079,2]
[326534947,1715088636103,-1098.8377003,0.00011079,2]
[326534951,1715088636116,-615.25441392,0.00011079,2]
[326534952,1715088636128,-6014.45686953,0.00011079,2]
[326534953,1715088636140,-11600.228162,0.00011079,2]
[326534954,1715088636149,-7506.04567181,0.0001129,2]
[326534955,1715088636159,-2297.31,0.00011291,2]
[326534956,1715088636169,-533.05127413,0.00011352,2]
[326534957,1715088636178,-200.0,0.00011354,2]
[326534958,1715088636188,-158.2,0.00011376,2]
[326534959,1715088636198,-1502.02,0.00011382,2]
[326534960,1715088636207,-540.18496129,0.0001142,2]
[326534961,1715088636218,-562.99,0.0001142,2]
[326534962,1715088636231,-791.03,0.00011421,2]
[326534963,1715088636250,-158.2,0.00011435,2]
[326534964,1715088636260,-158.2,0.00011494,2]
[326534965,1715088636270,-158.2,0.00011554,2]
[326534966,1715088636285,-158.2,0.00011613,2]
[326534967,1715088636300,-158.2,0.00011672,2]
[326534968,1715088636311,-158.2,0.00011732,2]
[326534969,1715088636322,-158.2,0.00011791,2]
[326534970,1715088636333,-158.2,0.0001185,2]
[326534971,1715088636344,-168.83467771,0.00011905,2]
[326534972,1715088636354,-158.2,0.00011909,2]
[326534973,1715088636364,-158.2,0.00011969,2]
[326534974,1715088636377,-293.97796203,0.00012009,2]
[326534975,1715088636387,-774.52375,0.00012009,2]
[326534976,1715088636397,-66080.34507475,0.0001201,2]
[326534977,1715088636407,-186.7,0.00012011,2]
[326534978,1715088636417,-158.03,0.00012011,2]
[326534979,1715088636427,-1280.12,0.00012011,2]
[326534980,1715088636438,-165.31,0.00012011,2]
[326534981,1715088636449,-875.59,0.00012011,2]
[326534982,1715088636460,-240.0,0.00012011,2]
[326534983,1715088636472,-859.35,0.00012011,2]
[326534984,1715088636482,-500.0,0.00012011,2]
[326534985,1715088636491,-1913.04,0.00012011,2]
[326534986,1715088636501,-200.0,0.00012011,2]
[326534987,1715088636512,-150.0,0.00012011,2]
[326534988,1715088636522,-250.0,0.00012011,2]
[326534989,1715088636532,-158.03,0.00012014,2]
[326534990,1715088636542,-158.03,0.00012017,2]
[326534991,1715088636552,-158.03,0.00012021,2]
[326534992,1715088636562,-158.03,0.00012024,2]
[326534993,1715088636572,-158.03,0.00012027,2]
[326534994,1715088636581,-158.03,0.0001203,2]
[326534995,1715088636592,-499.99,0.0001203,2]
[326534996,1715088636601,-157.4,0.0001203,2]
[326534997,1715088636611,-158.03,0.00012033,2]
[326534998,1715088636620,-158.03,0.00012036,2]
[326534999,1715088636630,-158.03,0.00012039,2]
[326535000,1715088636640,-158.03,0.00012043,2]
[326535001,1715088636650,-158.03,0.00012046,2]
[326535002,1715088636660,-158.03,0.00012049,2]
[326535003,1715088636670,-158.03,0.00012052,2]
[326535004,1715088636679,-158.03,0.00012055,2]
[326535005,1715088636689,-158.03,0.00012058,2]
[326535006,1715088636699,-158.03,0.00012062,2]
[326535007,1715088636709,-158.03,0.00012065,2]
[326535008,1715088636719,-158.03,0.00012068,2]
[326535009,1715088636728,-158.03,0.00012071,2]
[326535010,1715088636739,-800.0,0.000124,4]
[326535011,1715088636748,-1600.0,0.000125,4]
[326535012,1715088636759,-2500.0,0.000126,4]
[326535013,1715088636768,-3300.0,0.000127,4]
[326535014,1715088636778,-3500.3496962,0.00012719,2]
[326535015,1715088636788,-4100.0,0.000128,4]
[326535016,1715088636798,-807.56024817,0.00012839,2]
[326535017,1715088636808,-1173.46765146,0.0001287,2]
[326535018,1715088636819,-36835.0775,0.000129,2]
[326535019,1715088636828,-100000.0,0.000129,2]
[326535020,1715088636838,-2852.49065871,0.000129,2]
[326535021,1715088636848,-340.7231,0.000129,2]
[326535022,1715088636858,-800.0,0.000129,4]
[326535023,1715088636868,-329.58860424,0.000129,2]
[326535024,1715088636877,-2745.45071826,0.000129,2]
[326535025,1715088636889,-580.30090008,0.000129,2]
[326535026,1715088636900,-307.83762676,0.000129,2]
[326535027,1715088636910,-829.99220016,0.00012998,2]
[326535028,1715088636920,-2218.37398119,0.00012999,2]
[326535029,1715088636930,-1021.63834331,0.00012999,3]
[326535030,1715088636940,-160477.00438912,0.00013,2]
[326535031,1715088636953,-419.12099998,0.00013,2]
[326535032,1715088636995,-1448.08050943,0.00013,2]
[326535033,1715088637007,-77071.74674306,0.00013,2]
[326535034,1715088637019,-2243.71749999,0.00013,2]
[326535035,1715088637031,-818.82444517,0.00013,2]
[326535036,1715088637043,-555.59877824,0.00013,2]
[326535037,1715088637055,-350.0,0.00013,2]
[326535038,1715088637067,-15156.51075905,0.00013,2]
[326535039,1715088637079,-1432.68764726,0.00013,2]
[326535040,1715088637092,-12109.07982,0.00013,2]
[326535041,1715088637105,-1066.29448189,0.00013,2]
[326535042,1715088637117,-3672.19531073,0.00013,2]
[326535043,1715088637129,-14408.85197984,0.00013,2]
[326535044,1715088637141,-544.02,0.00013,2]
[326535110,1715088643721,-7645.1978705,0.00013,2]
[326535134,1715088643775,-1696.80076269,0.00013,2]
[326535140,1715088643787,-17776.5827603,0.00013,2]
[326535146,1715088643799,-1181.22,0.00013,2]
[326535151,1715088643810,-263.91281523,0.00013,2]
[326535153,1715088643823,-1097.46040765,0.00013,2]
[326535155,1715088643834,-110605.63006859,0.00013,2]
[326535157,1715088643846,-813.16179944,0.00013,2]
[326535159,1715088643858,-1910.663664,0.00013,2]
[326535161,1715088643870,-311.07500005,0.00013,2]
[326535162,1715088643881,-252.30770798,0.00013,2]
[326535164,1715088646586,-170.96,0.00012011,2]
[326535165,1715088646596,-591.788,0.00013,2]
[326535168,1715088646607,-5260.29198393,0.00013,2]
[326535171,1715088646618,-318.887502,0.00013,2]
[326535173,1715088646629,-889.14929002,0.00013,2]
[326535238,1715088865289,5545.0,0.00025,120]
[326535241,1715089098106,155.0,9.6e-05,2]
[326535242,1715089138898,1845.0,9.6e-05,2]
[326535245,1715089244047,-500.0,9.599e-05,2]
[326535251,1715089386916,-500.0,9.598e-05,2]
[326535252,1715089413034,155.0,9.597e-05,2]
[326535253,1715089415519,-36.79102365,9.598e-05,2]
[326535254,1715089417298,-262.69075904,9.599e-05,2]
[326535255,1715089419215,1700.51821731,9.599e-05,2]
[326535256,1715089451447,-2000.0,9.599e-05,2]
[326535257,1715089469742,-2000.0,9.599e-05,2]
[326535258,1715089533927,566.162403,9.598e-05,2]
[326535259,1715089539884,-1290.39320767,9.599e-05,2]
[326535260,1715089617346,-150.0,9.6e-05,2]
[326535261,1715089617368,-150.0,9.6e-05,2]
[326535262,1715089617390,-150.0,9.6e-05,2]
[326535267,1715089796510,635.57563254,9.608e-05,2]
[326535268,1715089805549,150.0,9.6e-05,2]
[326535269,1715089807841,150.0,9.6e-05,2]
[326535270,1715089809567,150.0,9.6e-05,2]
[326535271,1715089809695,150.0,9.6e-05,2]
[326535272,1715089809945,150.0,9.6e-05,2]
[326535273,1715089817235,164.42436746,9.6e-05,2]
[326535296,1715089833017,-511.31070692,9.6e-05,2]
[326535297,1715089833027,-404.6151549,9.6e-05,2]
[326535298,1715089833039,-155.62240542,9.6e-05,2]
[326535299,1715089833049,-3836.23628614,9.6e-05,2]
[326535300,1715089834858,-448.74875887,9.6e-05,2]
[326535301,1715089834870,-2838.51451592,9.6e-05,2]
[326535302,1715089834880,-166.42,9.609e-05,2]
[326535303,1715089834890,-566.90870785,0.00011503,2]
[326535304,1715089834903,-68.66692469,0.00011503,2]
[326535305,1715089834912,-164.47,0.00011504,2]
[326535306,1715089834922,-1500.0,0.00011557,2]
[326535307,1715089834931,-1000.0,0.00011569,2]
[326535308,1715089835242,-2803.13525915,0.00011581,2]
[326535309,1715089835253,-700.0,0.00011581,2]
[326535310,1715089835265,-255.97559429,0.00011581,2]
[326535311,1715089835277,-37390.57211378,0.00011581,2]
[326535312,1715089835286,-23900.0,0.00011581,2]
[326535313,1715089835295,-494.08,0.00011607,2]
[326535314,1715089835305,-150.0,0.00011753,2]
[326535315,1715089835314,-170.37573681,0.00011809,2]
[326535316,1715089835323,-400.38485774,0.0001201,2]
[326535317,1715089835332,-290.15277394,0.0001201,2]
[326535318,1715089835341,-165.0,0.0001201,2]
[326535319,1715089835350,-19666.08,0.0001201,2]
[326535320,1715089835360,-180.49,0.00012011,2]
[326535321,1715089835369,-1001.01,0.00012011,2]
[326535322,1715089835378,-250.0,0.00012011,2]
[326535323,1715089835388,-200.0,0.00012011,2]
[326535324,1715089835397,-150.0,0.00012011,2]
[326535325,1715089835405,-10000.0,0.00012011,2]
[326535326,1715089835414,-260.69,0.00012011,2]
[326535327,1715089835424,-170.3757368,0.00012027,2]
[326535328,1715089835433,-499.99,0.00012027,2]
[326535329,1715089835443,-14972.07,0.00012055,2]
[326535330,1715089835452,-180.49,0.00012071,2]
[326535331,1715089835462,-154.27,0.00012101,2]
[326535332,1715089835471,-154.27,0.00012164,2]
[326535333,1715089835480,-154.27,0.00012227,2]
[326535334,1715089835497,-170.3757368,0.00012245,2]
[326535335,1715089835507,-154.27,0.0001229,2]
[326535336,1715089835516,-1266.72867064,0.00012348,2]
[326535337,1715089835528,-21887.091,0.00012348,2]
[326535338,1715089835538,-154.27,0.00012353,2]
[326535339,1715089835547,-300.0,0.000124,4]
[326535340,1715089835557,-154.27,0.00012417,2]